Workbook

Sheet 종합소득세 간이계산
A1: 종합소득세 계산기 | B1: 엑셀 종합소득세 간이계산 | K1: 공제액 계산 기준 변경
B3: 종합소득금액 | C3: 35,000,000 | E3: 가족관계 | F3: 유/무 | G3: 만나이 | H3: 종합소득금액 | I3: 장애인여부 | K3: 과세표준 | L3: 소득세율 | M3: 누진공제 | O3: 기본공제
B4: 성별 | C4: 1 | E4: 배우자 | F4: O | G4: 35 | H4: 15,000,000 | K4: 0 | L4: 6% | M4: 0 | O4: 1,500,000
E5: 아버지 | F5: O | G5: 65 | K5: 14,000,000 | L5: 15% | M5: =K5*L5-K5*L4 -> 1,260,000
B6: 종합소득공제 항목 | C6: 금액 | E6: 어머니 | F6: O | G6: 61 | K6: 50,000,000 | L6: 24% | M6: =K6*L6-K6*L5+M5 -> 5,760,000
B7: 기본공제(본인) | C7: =O4 -> 1,500,000 | E7: 형제자매1 | K7: 88,000,000 | L7: 35% | M7: 15,440,000
B8: 기본공제(세대) | C8: =F15 -> 7,500,000 | E8: 형제자매2 | K8: 150,000,000 | L8: 38% | M8: 19,940,000
B9: 추가공제 | C9: =SUM(F16:F19) -> 0 | E9: 자녀1 | F9: O | G9: 3 | K9: 300,000,000 | L9: 40% | M9: 25,940,000
B10: 국민연금보험 공제액 | E10: 자녀2 | F10: O | G10: 1 | K10: 500,000,000 | L10: 42% | M10: 35,940,000
B11: 기타 보험료 공제액 | E11: 자녀3 | K11: 1,000,000,000 | L11: 45% | M11: 65,940,000
B12: 소기업상공인 공제액
B13: 기타 공제액 | F13: 공제금액 | K13: (A) 인적공제 종합소득기준 | L13: (B) 경로우대- 만나이기준 | M13: (C) 부녀자공제- 내소득기준 | N13: (D) 부녀자공제 인적공제합계기준 | O13: (E) 공제금액 | P13: 공제확정 금액
B14: 종합소득공제 합계 | C14: =SUM(C7:C13) -> 9,000,000
E15: 인적공제 | F15: =P15 -> 7,500,000 | J15: ← | K15: 1,000,000 | O15: 1,500,000 | P15: =SUM(IF(AND(F4="O",H4>$K$15),$O$15,0),IF((F5:F11="O")*(G5:G11>=60)+(F5:F11="O")*(G5:G11<=20)*(G5:G11>0),$O$15,0)) -> 7,500,000
B16: 과세표준 | C16: =C3-C14 -> 26,000,000 | E16: 경로우대자공제 | F16: =P16 -> 0 | J16: ← | L16: 70 | O16: 1,000,000 | P16: =SUM(IF(G4:G11>=L16,O16,0)) -> 0
E17: 장애인공제 | F17: =P17 -> 0 | J17: ← | O17: 2,000,000 | P17: =SUM(IF(I4:I11="O",O17,0)) -> 0
B18: 소득세 | C18: =IFERROR(C16*VLOOKUP(C16,K4:M11,2)-VLOOKUP(C16,K4:M11,3),0) -> 2,640,000 | E18: 부녀자공제 | F18: =MAX(P18:P19) -> 0 | J18: ← | M18: 30,000,000 | N18: 1,500,000 | O18: 500,000 | P18: =IF(OR(AND(C4=2,C3<=M18,F4="O"),AND(C4=2,C3<M18,F4<>"O",P15>=N18)),O18,0) -> 0
B19: 지방세 | C19: =C18*10% -> 264,000 | E19: 한부모공제 | J19: ← | O19: 1,000,000 | P19: =IF(AND(F4<>"O",SUM(IF((--(F9:F11="O")*(G9:G11<=20)),IF(H9:H11>$K$15,0,$O$15),0))>0),O19,0) -> 0
B20: 합계금액 | C20: =C18+C19 -> 2,904,000 | K20: 세엑공제
J21: ← | K21: 70,000
B22: 표준세액공제 | C22: =K21 -> 70,000
B24: 소득결정세액 | C24: =C18-C22 -> 2,570,000
B25: 지방결정세액 | C25: =C24*10% -> 257,000
B26: 합계금액 | C26: =C24+C25 -> 2,827,000
B28: (월기준) | C28: =C26/12 -> 235,583
B32: 2022년 종합소득세를 소득액/가족관계 입력으로 간단하게 계산할 수 있는 엑셀 종합소득세 간이계산기 양식입니다.
B34: 양식 초기화를 위한 매크로가 포함되어 있습니다.
B35: 파일 처음실행 시 화면 상단의 '콘텐츠포함' 버튼을 클릭하여 매크로를 활성화해주세요.
I38: www.taxnet.co.kr
